bitfinex-derivatives/quotes_SOLF0:USTF0_20250301
["timestamp","ask_amount","ask_price","bid_price","bid_amount"]
[1740811823633,5.56,143.93,143.88,71.53922944]
[1740811823930,0.0525457,143.92,143.89,0.05285541]
[1740811825327,5.6127457,143.92,143.89,0.05285541]
[1740811828637,0.0525457,143.92,143.89,0.05285541]
[1740811828832,5.5607,143.91,143.89,0.05285541]
[1740811830427,5.5609,143.9,143.89,0.05285541]
[1740811830830,5.5609,143.9,143.89,5.541e-05]
[1740811846641,6.80313676,143.9,143.89,5.541e-05]
[1740811846945,5.5609,143.9,143.89,5.541e-05]
[1740811851450,6.80348206,143.9,143.89,5.541e-05]
[1740811853044,5.5609,143.9,143.89,5.541e-05]
[1740811853446,6.80379245,143.9,143.89,5.541e-05]
[1740811853650,5.5609,143.9,143.89,5.541e-05]
[1740811867458,30.81265099,143.9,143.89,5.541e-05]
[1740811867768,40.95265099,143.9,143.89,5.541e-05]
[1740811868860,30.81265099,143.9,143.89,5.541e-05]
[1740811869762,5.5609,143.9,143.89,5.541e-05]
[1740811871968,10.1925457,143.92,143.89,5.541e-05]
[1740811872359,0.0525457,143.92,143.89,5.541e-05]
[1740811872565,0.0525457,143.92,143.9,5.5609]
[1740811872765,0.0525457,143.92,143.91,1.7992]
[1740811873768,5.6127457,143.92,143.91,1.7992]
[1740811874972,5.6132457,143.92,143.91,1.7992]
[1740811875264,0.0525457,143.92,143.89,5.541e-05]
[1740811875465,5.5615,143.9,143.89,5.541e-05]
[1740811877676,9.0415,143.9,143.89,5.541e-05]
[1740811878971,9.0415,143.9,143.76,1.7791]
[1740811878972,25.6020589,143.9,143.76,1.7791]
[1740811879170,223.7820589,143.89,143.76,1.7791]
[1740811879370,10.14,143.88,143.76,3.6764]
[1740811879570,1.24190848,143.87,143.76,3.6764]
[1740811879962,0.04449868,143.83,143.76,3.6764]
[1740811880168,15.7049,143.82,143.8,0.04545586]
[1740811880774,10.14,143.82,143.8,0.04545586]
[1740811884678,15.7047,143.82,143.8,0.04545586]
[1740811885678,10.14,143.82,143.8,0.04545586]
[1740811888878,15.7046,143.82,143.8,0.04545586]
[1740811890789,5.565,143.81,143.8,0.04545586]
[1740811891185,10.14,143.82,143.8,0.04545586]
[1740811891384,15.7047,143.82,143.8,0.04545586]
[1740811892292,10.14,143.82,143.8,0.04545586]
[1740811894899,15.7046,143.82,143.8,0.04545586]
[1740811896391,5.565,143.81,143.8,0.04545586]
[1740811897896,5.565,143.81,143.8,5.586e-05]
[1740811899793,6.80744208,143.81,143.8,5.586e-05]
[1740811899993,10.46534208,143.81,143.8,5.586e-05]
[1740811902495,13.94534208,143.81,143.8,5.586e-05]
[1740811903096,12.7029,143.81,143.8,5.586e-05]
[1740811903401,13.94511785,143.81,143.8,5.586e-05]
[1740811903901,13.94514293,143.81,143.8,5.586e-05]
[1740811904701,10.46514293,143.81,143.8,5.586e-05]
[1740811906302,6.80724293,143.81,143.8,5.586e-05]
[1740811906702,5.565,143.81,143.8,5.586e-05]
[1740811907003,6.80760269,143.81,143.8,5.586e-05]
[1740811908601,6.80752604,143.81,143.8,5.586e-05]
[1740811915610,22.40398636,143.81,143.8,5.586e-05]
[1740811917706,21.16146032,143.81,143.8,5.586e-05]
[1740811917907,22.40371066,143.81,143.8,5.586e-05]
[1740811919206,32.54371066,143.81,143.8,5.586e-05]
[1740811919906,16.94725034,143.81,143.8,5.586e-05]
[1740811921307,20.42725034,143.81,143.8,5.586e-05]
[1740811922107,29.961568,143.81,143.8,5.586e-05]
[1740811922309,5.5692,143.7,143.69,1.9203]
[1740811922701,10.14,143.71,143.69,1.9203]
[1740811922907,15.709,143.71,143.69,1.9203]
[1740811923407,15.75748786,143.71,143.69,1.96530406]
[1740811923606,10.18848786,143.71,143.69,1.96530406]
[1740811923904,5.5692,143.7,143.69,0.04500406]
[1740811926308,5.5692,143.7,143.69,4.06e-06]
[1740811930715,6.81008065,143.7,143.69,4.06e-06]
[1740811932016,5.5692,143.7,143.69,4.06e-06]
[1740811932518,6.81023774,143.7,143.69,4.06e-06]
[1740811932711,5.5692,143.7,143.69,4.06e-06]
[1740811934519,15.7092,143.7,143.69,4.06e-06]
[1740811936217,16.94961785,143.7,143.69,4.06e-06]
[1740811937618,15.7092,143.7,143.69,4.06e-06]
[1740811937818,17.5972,143.7,143.69,4.06e-06]
[1740811939424,18.83751505,143.7,143.69,4.06e-06]
[1740811944925,18.83790019,143.7,143.69,4.06e-06]
[1740811951532,16.94990019,143.7,143.69,4.06e-06]
[1740811954534,16.94978094,143.7,143.69,4.06e-06]
[1740811957034,70.65595064,143.7,143.69,4.06e-06]
[1740811959138,69.4153697,143.7,143.69,4.06e-06]
[1740811959337,70.65582243,143.7,143.69,4.06e-06]
[1740811960132,108.49615347,143.7,143.69,4.06e-06]
[1740811961139,108.49608008,143.7,143.69,4.06e-06]
[1740811961444,107.25570074,143.7,143.69,4.06e-06]
[1740811961650,108.49608235,143.7,143.69,4.06e-06]
[1740811962953,107.25570074,143.7,143.69,4.06e-06]
[1740811963155,108.49619003,143.7,143.69,4.06e-06]
[1740811964755,205.66340525,143.7,143.69,4.06e-06]
[1740811964957,5.5721,143.63,143.6,1.8496]
[1740811965956,5.62006994,143.63,143.6,1.90310129]
[1740811966254,5.5724,143.62,143.6,1.90310129]
[1740811966446,5.5724,143.62,143.6,5.38310129]
[1740811967160,5.62006994,143.63,143.6,5.38310129]
[1740811967458,0.04796994,143.63,143.6,1.90310129]
[1740811968457,5.62006994,143.63,143.6,1.90310129]
[1740811968755,0.04796994,143.63,143.6,1.90310129]
[1740811969458,5.5724,143.62,143.6,1.90310129]
[1740811970056,5.5724,143.62,143.6,5.38310129]
[1740811972359,5.5727,143.61,143.6,1.90310129]
[1740811973252,5.5727,143.61,143.6,5.38310129]
[1740811973755,5.5725,143.62,143.6,5.38310129]
[1740811973960,0.04796994,143.63,143.6,1.90310129]
[1740811974461,5.62016994,143.63,143.6,1.90310129]
[1740811975462,5.5724,143.62,143.6,1.90310129]
[1740811976056,5.5724,143.62,143.6,5.38310129]
[1740811978065,5.5724,143.62,143.6,1.90310129]
[1740811982460,0.04796994,143.63,143.6,5.38310129]
[1740811982661,2.66306994,143.63,143.6,10.95610129]
[1740811982861,10.14,143.66,143.6,5.38310129]
[1740811983059,5.5713,143.65,143.61,5.5724]
[1740811983561,5.5713,143.65,143.62,1.9524]
[1740811983763,5.62365719,143.65,143.62,1.9524]
[1740811983966,0.05235719,143.65,143.62,7.5245]
[1740811984170,5.571,143.66,143.62,1.9524]
[1740811984669,9.57740273,143.67,143.62,5.4324]
[1740811985059,9.57740273,143.67,143.62,1.9524]
[1740811985460,0.04776772,143.66,143.63,0.04511726]
[1740811985664,9.57740273,143.67,143.63,0.04511726]
[1740811985864,9.57740273,143.67,143.64,5.5715]
[1740811986671,5.5701,143.68,143.65,5.5711]
[1740811986871,0.04679427,143.67,143.65,5.5711]
[1740811987073,5.5701,143.68,143.65,5.5711]
[1740811988174,5.62105513,143.68,143.65,5.5711]
[1740811988669,0.05095513,143.68,143.65,5.5711]
[1740811988870,5.5697,143.69,143.65,5.5711]
[1740811989376,5.5697,143.69,143.66,1.8694]
[1740811989870,10.14,143.71,143.66,1.8694]
[1740811990076,5.57,143.68,143.66,1.91440421]
[1740811990676,5.62257926,143.69,143.66,1.91440421]
[1740811992270,0.05287926,143.69,143.66,1.91440421]
[1740811992476,0.05287926,143.69,143.67,1.9372]
[1740811997681,0.05287926,143.69,143.66,0.04500421]
[1740811997875,5.5703,143.68,143.66,0.04500421]
[1740811998070,0.05287926,143.69,143.66,4.21e-06]
[1740811998272,5.5704,143.67,143.66,4.21e-06]
[1740811999087,6.81101134,143.67,143.66,4.21e-06]
[1740811999573,5.5704,143.67,143.66,4.21e-06]
[1740811999775,6.81094558,143.67,143.66,4.21e-06]
[1740812000578,6.81097902,143.67,143.66,4.21e-06]
[1740812002076,5.5704,143.67,143.66,4.21e-06]
[1740812003381,10.14,143.68,143.66,4.21e-06]
[1740812003984,15.7097,143.68,143.66,4.21e-06]
[1740812004387,10.14,143.68,143.66,4.21e-06]
[1740812005388,5.5698,143.67,143.66,4.21e-06]
[1740812006195,0.05287926,143.69,143.66,4.21e-06]
[1740812007490,5.5698,143.67,143.66,4.21e-06]
[1740812011786,5.5696,143.68,143.66,4.21e-06]
[1740812013895,5.62217926,143.69,143.66,4.21e-06]
[1740812014493,0.05287926,143.69,143.66,4.21e-06]
[1740812014695,5.5695,143.68,143.66,4.21e-06]
[1740812015383,5.5698,143.67,143.66,4.21e-06]
[1740812016096,5.5697,143.68,143.66,4.21e-06]
[1740812016394,0.05287926,143.69,143.66,4.21e-06]
[1740812016697,5.5694,143.68,143.66,4.21e-06]
[1740812027500,0.05287926,143.69,143.66,4.21e-06]
[1740812027692,5.62207926,143.69,143.66,4.21e-06]
[1740812028196,0.05287926,143.69,143.66,4.21e-06]
[1740812029403,0.05287926,143.69,143.67,5.5698]
[1740812032700,0.05287926,143.69,143.66,4.21e-06]
[1740812032897,0.05287926,143.69,143.68,5.5694]
[1740812034808,43.87551093,143.78,143.68,3.48]
[1740812035004,38.30961093,143.78,143.67,1.8611]
[1740812035201,38.30961093,143.78,143.67,3.5612]
[1740812035405,38.30961093,143.78,143.67,192.208]
[1740812036004,0.05016369,143.74,143.73,5.5673]
[1740812036304,57.73184762,143.79,143.71,10.12]
[1740812036507,0.0472343,143.75,143.72,0.05338718]
[1740812037808,0.0472343,143.75,143.74,5.5671]
[1740812040703,0.0472343,143.75,143.72,2.01848718]
[1740812040904,0.0472343,143.75,143.72,0.05338718]
[1740812045715,0.0472343,143.75,143.72,5.62108718]
[1740812046007,0.0472343,143.75,143.72,0.05338718]
[1740812047216,0.0472343,143.75,143.74,5.5671]
[1740812049112,0.0472343,143.75,143.73,5.5674]
[1740812049610,0.0472343,143.75,143.72,5.62118718]
[1740812050107,0.0472343,143.75,143.72,0.05338718]
[1740812050308,0.0472343,143.75,143.74,5.5671]
[1740812051010,10.12,143.82,143.76,5.5661]
[1740812051210,5.565,143.8,143.76,5.5661]
[1740812051412,10.12,143.82,143.76,5.5661]
[1740812052016,10.12,143.82,143.77,5.5659]
[1740812052210,0.04961146,143.8,143.78,0.05037772]
[1740812053117,0.04961146,143.8,143.78,5.61597772]
[1740812054115,0.04961146,143.8,143.78,0.05037772]
[1740812055727,0.04961146,143.8,143.78,5.61587772]
[1740812057223,0.04961146,143.8,143.78,0.05037772]
[1740812057430,0.04961146,143.8,143.79,5.5652]
[1740812058832,3.666,143.85,143.81,5.5642]
[1740812059027,3.666,143.85,143.77,190.5014]
[1740812059330,3.666,143.85,143.77,188.6468]
[1740812059724,5.5642,143.82,143.77,188.6468]
[1740812059924,5.60957867,143.82,143.8,0.04549976]
[1740812060332,0.04537867,143.82,143.8,0.04549976]
[1740812061327,0.04537867,143.82,143.8,5.60999976]
[1740812065531,0.04537867,143.82,143.8,0.04549976]
[1740812065733,0.04537867,143.82,143.81,5.5644]
[1740812079545,0.04537867,143.82,143.8,5.61029976]
[1740812079745,0.04537867,143.82,143.8,0.04549976]
[1740812080938,0.04537867,143.82,143.8,5.61019976]
[1740812081338,0.04537867,143.82,143.81,5.5644]
[1740812084644,0.04537867,143.82,143.8,0.04549976]
[1740812085240,0.04537867,143.82,143.81,5.5644]
[1740812086349,12.0424,143.88,143.8,0.04549976]
[1740812086350,10.1,143.88,143.8,0.04549976]
[1740812087147,12.0147,143.89,143.8,0.04549976]
[1740812087346,17.576,143.89,143.78,10.1]
[1740812087547,17.576,143.89,143.83,0.05312713]
[1740812087852,17.576,143.89,143.84,5.563]
[1740812089842,17.576,143.89,143.83,5.61652713]
[1740812090547,5.5617,143.88,143.83,5.61652713]
[1740812091144,1.9147,143.89,143.83,0.05312713]
[1740812091344,7.4761,143.89,143.84,5.5632]
[1740812091739,7.4761,143.89,143.83,0.05312713]
[1740812091942,7.4761,143.89,143.84,5.5631]
[1740812092648,5.5617,143.88,143.84,5.5631]
[1740812094153,1.9147,143.89,143.83,0.05312713]
[1740812094753,7.4763,143.89,143.85,5.5628]
[1740812096455,5.5618,143.88,143.85,5.5628]
[1740812097654,7.4763,143.89,143.85,5.5628]
[1740812101258,7.4763,143.89,143.83,0.05312713]
[1740812101459,7.4763,143.89,143.83,5.61652713]
[1740812102054,1.9147,143.89,143.83,5.61652713]
[1740812102359,5.5617,143.88,143.83,5.61652713]
[1740812102658,1.9147,143.89,143.83,0.05312713]
[1740812102860,5.5632,143.84,143.83,0.05312713]
[1740812104850,5.5643,143.82,143.8,188.6468]
[1740812106066,5.5644,143.81,143.8,188.69119807]
[1740812108059,0.05107852,143.82,143.8,188.69119807]
[1740812110053,0.05107852,143.82,143.8,0.04439807]
[1740812110459,1.9287,143.88,143.8,0.04439807]
[1740812110859,7.4905,143.88,143.82,5.5638]
[1740812111572,7.4905,143.88,143.84,0.044422]
[1740812112266,5.5618,143.88,143.84,0.044422]
[1740812113162,5.5621,143.87,143.84,0.044422]
[1740812113357,19.67740273,143.91,143.84,0.044422]
[1740812113760,5.5628,143.86,143.84,0.044422]
[1740812114169,10.1,143.91,143.84,0.044422]
[1740812114362,0.05296326,143.89,143.76,190.4327]
[1740812114559,1.24302099,143.9,143.76,190.4327]
[1740812115163,5.5635,143.84,143.76,190.4327]
[1740812115466,0.05098681,143.81,143.79,0.04493711]
[1740812117461,0.05098681,143.81,143.8,5.5648]
[1740812119068,0.05098681,143.81,143.79,0.04493711]
[1740812122668,5.5648,143.8,143.79,0.04493711]
[1740812122964,0.05098681,143.81,143.79,0.04493711]
[1740812124374,5.61558681,143.81,143.79,0.04493711]
[1740812124678,0.05098681,143.81,143.79,0.04493711]
[1740812125675,0.05098681,143.81,143.76,188.6468]
[1740812125972,5.5655,143.79,143.76,188.6468]
[1740812126174,5.5655,143.79,143.75,0.72132549]
[1740812126865,5.5655,143.79,143.76,0.04578348]
[1740812127871,5.5649,143.8,143.76,0.04578348]
[1740812128778,5.5653,143.79,143.76,0.04578348]
[1740812128980,0.05098681,143.81,143.76,5.61198348]
[1740812130079,0.05098681,143.81,143.76,0.04578348]
[1740812131378,5.566,143.77,143.76,0.04578348]
[1740812131583,15.666,143.77,143.76,0.04578348]
[1740812132478,10.1,143.77,143.76,0.04578348]
[1740812132977,0.04585698,143.78,143.76,0.04578348]
[1740812133177,0.04585698,143.78,143.77,5.566]
[1740812135091,0.04585698,143.78,143.76,0.04578348]
[1740812138695,0.04585698,143.78,143.77,5.566]
[1740812139890,469.59284885,143.92,143.76,0.04578348]
[1740812140188,88.50662188,143.89,143.77,10.1]
[1740812140395,88.50662188,143.89,143.78,1.9273]
[1740812140594,5.5631,143.85,143.78,1.9273]
[1740812141194,0.04465111,143.83,143.8,5.61196841]
[1740812143695,0.04465111,143.83,143.8,0.04716841]
[1740812144600,5.60835111,143.83,143.8,0.04716841]
[1740812146202,5.5641,143.82,143.8,0.04716841]
[1740812146596,0.04465111,143.83,143.8,0.04716841]
[1740812146796,5.5644,143.81,143.8,0.04716841]
[1740812147603,5.5657,143.78,143.75,59.05617183]
[1740812148504,5.5648,143.8,143.75,64.62277183]
[1740812148706,0.05063415,143.78,143.75,64.66687802]
[1740812149007,0.05063415,143.78,143.76,5.5663]
[1740812150500,0.05063415,143.78,143.75,59.10027802]
[1740812150798,0.05063415,143.78,143.77,5.566]
[1740812154705,10.1,143.84,143.75,59.10027802]
[1740812154910,15.6634,143.84,143.81,5.5643]
[1740812155907,15.70950627,143.84,143.81,5.61632599]
[1740812156712,10.14610627,143.84,143.81,5.61632599]
[1740812157908,10.14610627,143.84,143.81,0.05202599]
[1740812159003,15.70940627,143.84,143.81,0.05202599]
[1740812160712,5.60940627,143.84,143.81,0.05202599]
[1740812161410,5.60940627,143.84,143.81,5.61642599]
[1740812161816,0.04610627,143.84,143.81,5.61642599]
[1740812164105,0.04610627,143.84,143.83,5.5636]
[1740812170024,0.04610627,143.84,143.81,5.61632599]
[1740812170723,5.60940627,143.84,143.81,5.61632599]
[1740812171024,0.04610627,143.84,143.81,5.61632599]
[1740812172518,0.04610627,143.84,143.81,0.05202599]
[1740812172718,0.04610627,143.84,143.81,5.61642599]
[1740812174325,0.04610627,143.84,143.81,0.05202599]
[1740812174515,1.90780627,143.84,143.81,0.05202599]
[1740812174917,5.5639,143.83,143.81,0.05202599]
[1740812175717,7.47120627,143.84,143.81,0.05202599]
[1740812176732,1.90780627,143.84,143.81,0.05202599]
[1740812176927,5.564,143.83,143.81,0.05202599]
[1740812177725,5.564,143.82,143.81,0.05202599]
[1740812178926,1.90780627,143.84,143.81,0.05202599]
[1740812179229,5.5638,143.83,143.81,0.05202599]
[1740812182127,1.90780627,143.84,143.81,0.05202599]
[1740812182331,5.564,143.82,143.81,0.05202599]
[1740812183730,5.5656,143.78,143.75,59.05617183]
[1740812184418,5.5653,143.79,143.75,59.05617183]
[1740812184827,0.04751411,143.78,143.76,0.05294731]
[1740812185032,0.04751411,143.78,143.77,5.566]
[1740812186733,0.04751411,143.78,143.76,5.61914731]
[1740812187528,0.04751411,143.78,143.76,0.05294731]
[1740812187726,5.61331411,143.78,143.76,0.05294731]
[1740812188031,0.04751411,143.78,143.76,0.05294731]
[1740812189032,5.566,143.77,143.76,0.05294731]
[1740812189833,5.61321411,143.78,143.76,0.05294731]
[1740812201253,5.566,143.77,143.76,0.05294731]
[1740812202660,5.61321411,143.78,143.76,0.05294731]
[1740812205758,5.566,143.77,143.76,0.05294731]
[1740812206162,0.04751411,143.78,143.76,0.05294731]
[1740812206363,5.61331411,143.78,143.76,0.05294731]
[1740812209673,0.04751411,143.78,143.76,0.05294731]
[1740812210265,0.04751411,143.78,143.77,5.566]
[1740812211266,0.04751411,143.78,143.76,5.61914731]
[1740812212974,0.04751411,143.78,143.76,0.05294731]
[1740812213874,5.61331411,143.78,143.76,0.05294731]
[1740812215271,5.566,143.77,143.76,0.05294731]
[1740812217970,0.04751411,143.78,143.76,0.05294731]
[1740812218876,5.566,143.77,143.76,0.05294731]
[1740812219077,0.04751411,143.78,143.76,0.05294731]
[1740812219576,5.566,143.77,143.76,0.05294731]
[1740812220078,5.61341411,143.78,143.76,0.05294731]
[1740812221579,5.566,143.77,143.76,0.05294731]
[1740812225373,0.04751411,143.78,143.76,0.05294731]
[1740812227286,5.61331411,143.78,143.76,0.05294731]
[1740812227490,0.04751411,143.78,143.76,5.61924731]
[1740812227985,0.04751411,143.78,143.76,0.05294731]
[1740812228888,0.04751411,143.78,143.76,5.61924731]
[1740812229889,0.04751411,143.78,143.76,0.05294731]
[1740812231382,0.04751411,143.78,143.76,5.61914731]
[1740812235388,5.61341411,143.78,143.76,0.05294731]
[1740812235588,0.04751411,143.78,143.76,0.05294731]
[1740812237590,0.04751411,143.78,143.76,5.61904731]
[1740812237894,0.04751411,143.78,143.76,0.05294731]
[1740812239101,5.61321411,143.78,143.76,0.05294731]
[1740812241597,0.04751411,143.78,143.76,0.05294731]
[1740812241797,0.04751411,143.78,143.76,5.61904731]
[1740812244803,0.04751411,143.78,143.77,5.566]
[1740812245004,19.65740273,143.83,143.76,0.05294731]
[1740812245602,10.08,143.83,143.76,0.05294731]
[1740812246308,0.05049994,143.81,143.76,0.05294731]
[1740812247907,0.05049994,143.81,143.78,5.5653]
[1740812250406,5.61499994,143.81,143.78,5.5653]
[1740812251213,5.61499994,143.81,143.77,5.5659]
[1740812253413,5.61499994,143.81,143.76,0.05294731]
[1740812253605,0.05049994,143.81,143.78,5.5655]
[1740812255314,0.05049994,143.81,143.76,0.05294731]
[1740812255504,0.05049994,143.81,143.79,5.5649]
[1740812256704,0.05049994,143.81,143.8,5.5648]
[1740812257809,0.05049994,143.81,143.79,0.04918492]
[1740812262219,5.61509994,143.81,143.79,0.04918492]
[1740812262619,0.05049994,143.81,143.79,0.04918492]
[1740812263013,5.5648,143.8,143.79,0.04918492]
[1740812265024,0.05049994,143.81,143.79,0.04918492]
[1740812265223,0.05049994,143.81,143.79,5.61418492]
[1740812265517,0.05049994,143.81,143.79,0.04918492]
[1740812267511,5.5648,143.8,143.79,0.04918492]
[1740812271623,5.5652,143.79,143.75,5.5665]
[1740812272217,5.5652,143.79,143.76,5.5663]
[1740812272518,5.5652,143.79,143.72,1.7938]
[1740812272719,5.61040587,143.79,143.76,0.05257064]
[1740812273325,0.04520587,143.79,143.76,0.05257064]
[1740812274027,0.04520587,143.79,143.78,5.5656]
[1740812290644,0.04520587,143.79,143.76,0.05257064]
[1740812291039,5.61120587,143.79,143.76,5.61927064]
[1740812291340,0.04520587,143.79,143.76,5.61927064]
[1740812291840,0.04520587,143.79,143.76,0.05257064]
[1740812292447,0.04520587,143.79,143.78,5.5661]
[1740812296948,0.04520587,143.79,143.77,7.3473]
[1740812297247,0.04520587,143.79,143.77,5.5663]
[1740812297736,0.04520587,143.79,143.76,0.05257064]
[1740812297934,0.04520587,143.79,143.78,5.5661]
[1740812301339,21.50380273,143.84,143.81,5.5649]
[1740812302042,21.50380273,143.84,143.8,5.5652]
[1740812302548,0.05305281,143.83,143.81,0.05276104]
[1740812302952,5.5646,143.82,143.81,0.05276104]
[1740812303250,0.05305281,143.83,143.81,0.05276104]
[1740812303453,5.61735281,143.83,143.81,0.05276104]
[1740812306258,5.5646,143.82,143.81,0.05276104]
[1740812306853,0.05305281,143.83,143.75,1.783]
[1740812307055,11.9264,143.84,143.75,1.783]
[1740812307359,5.5661,143.79,143.75,7.3502]
[1740812307856,0.05212249,143.78,143.76,0.04759978]
[1740812311260,0.05212249,143.78,143.76,5.61439978]
[1740812311958,0.05212249,143.78,143.76,0.04759978]
[1740812313458,5.5665,143.77,143.76,0.04759978]
[1740812313667,3.53212249,143.78,143.69,5.5694]
[1740812313864,1.7786,143.76,143.65,0.48985296]
[1740812314068,5.5685,143.72,143.65,0.48985296]
[1740812314267,10.06,143.73,143.67,5.5703]
[1740812314871,0.05017492,143.71,143.69,0.0494491]
[1740812316364,0.05017492,143.71,143.7,5.5692]
[1740812318880,10.06,143.78,143.69,0.0494491]
[1740812319176,5.5666,143.77,143.68,1.9525]
[1740812319377,5.5666,143.77,143.73,5.5678]
[1740812319979,0.04423323,143.76,143.74,0.04466796]
[1740812320880,0.04423323,143.76,143.74,5.61226796]
[1740812321580,0.04423323,143.76,143.74,0.04466796]
[1740812323580,0.04423323,143.76,143.74,5.61236796]
[1740812327984,0.04423323,143.76,143.75,5.5673]
[1740812329480,0.04423323,143.76,143.74,5.61216796]
[1740812331289,0.04423323,143.76,143.75,5.5673]
[1740812333284,0.04423323,143.76,143.74,0.04466796]
[1740812333485,0.04423323,143.76,143.74,5.61226796]
[1740812336486,0.04423323,143.76,143.75,5.5673]
[1740812338885,0.04423323,143.76,143.74,0.04466796]
[1740812339088,0.04423323,143.76,143.74,5.61216796]
[1740812339485,0.04423323,143.76,143.74,0.04466796]
[1740812339692,0.04423323,143.76,143.75,5.5673]
[1740812340299,0.04423323,143.76,143.74,5.61216796]
[1740812343499,0.04423323,143.76,143.74,0.04466796]
[1740812343693,0.04423323,143.76,143.75,5.5673]
[1740812346490,5.5651,143.81,143.78,5.5658]
[1740812346690,5.5651,143.81,143.72,58.8433471]
[1740812346892,5.5651,143.81,143.73,1.7898]
[1740812347198,5.5651,143.81,143.77,5.5661]
[1740812347393,5.5651,143.81,143.73,1.7898]
[1740812347598,0.05293495,143.78,143.76,0.05047209]
[1740812349292,0.05293495,143.78,143.77,5.5662]
[1740812353301,1.9589,143.84,143.76,0.05047209]
[1740812353503,10.06,143.85,143.76,0.05047209]
[1740812353695,15.6236,143.85,143.74,1.9658]
[1740812354202,15.6236,143.85,143.81,5.5646]
[1740812354503,15.6236,143.85,143.82,0.04542595]
[1740812355602,5.5638,143.84,143.82,0.04542595]
[1740812356806,10.06,143.85,143.82,0.04542595]
[1740812357005,5.5642,143.83,143.82,0.04542595]
[1740812358109,5.5639,143.84,143.82,0.04542595]
[1740812358704,10.06,143.85,143.82,0.04542595]
[1740812358908,15.6237,143.85,143.82,0.04542595]
[1740812360809,10.06,143.85,143.82,0.04542595]
[1740812361109,5.5638,143.84,143.82,0.04542595]
[1740812362609,5.5642,143.83,143.82,0.04542595]
[1740812362910,10.06,143.85,143.82,0.04542595]
[1740812363311,15.6236,143.85,143.82,0.04542595]
[1740812364911,5.5638,143.84,143.82,0.04542595]
[1740812365711,5.5642,143.83,143.82,0.04542595]
[1740812367313,10.06,143.85,143.82,0.04542595]
[1740812367514,5.5639,143.84,143.82,0.04542595]
[1740812367704,10.06,143.85,143.82,0.04542595]
[1740812368013,15.6235,143.85,143.82,0.04542595]
[1740812368407,15.6235,143.85,143.82,5.60992595]
[1740812371510,5.5631,143.86,143.83,5.5639]
[1740812371913,11.9633,143.88,143.83,5.5639]
[1740812372217,5.5628,143.87,143.83,5.5639]
[1740812374619,5.5631,143.86,143.83,5.5639]
[1740812380023,5.5628,143.87,143.83,5.5639]
[1740812381524,1.9233,143.88,143.82,0.04542595]
[1740812381927,5.5642,143.84,143.82,0.04542595]
[1740812382230,1.9233,143.88,143.82,0.04542595]
[1740812382626,5.5642,143.83,143.82,0.04542595]
[1740812382821,1.8876,143.87,143.7,49.56066859]
[1740812383027,10.04,143.86,143.74,1.8669]
[1740812383634,5.5648,143.82,143.78,5.5658]
[1740812384029,0.05130713,143.81,143.79,0.0497835]
[1740812384833,0.05130713,143.81,143.8,5.5653]
[1740812392843,0.05130713,143.81,143.79,5.6153835]
[1740812394238,0.05130713,143.81,143.79,0.0497835]
[1740812395440,0.05130713,143.81,143.79,5.6151835]
[1740812396243,0.05130713,143.81,143.79,0.0497835]
[1740812398748,5.5653,143.8,143.79,0.0497835]
[1740812399644,5.5659,143.79,143.75,5.5671]
[1740812400045,10.09130713,143.81,143.74,1.8669]
[1740812400241,5.5664,143.78,143.74,1.8669]
[1740812400752,0.05013327,143.77,143.75,0.04708107]
[1740812402151,0.05013327,143.77,143.76,5.5669]
[1740812402443,3.327e-05,143.77,143.76,5.5669]
[1740812413060,3.327e-05,143.77,143.75,0.04708107]
[1740812413260,3.327e-05,143.77,143.75,5.61418107]
[1740812413761,3.327e-05,143.77,143.75,0.04708107]
[1740812414464,3.327e-05,143.77,143.76,5.5669]
[1740812420761,3.327e-05,143.77,143.75,11.98838107]
[1740812421071,3.327e-05,143.77,143.75,5.61418107]
[1740812421870,3.327e-05,143.77,143.76,5.5669]
[1740812423560,3.327e-05,143.77,143.75,5.61428107]
[1740812423764,5.5669,143.76,143.75,0.04708107]
[1740812423964,3.327e-05,143.77,143.75,0.04708107]
[1740812424770,5.56683327,143.77,143.75,0.04708107]
[1740812425070,3.327e-05,143.77,143.75,0.04708107]
[1740812425462,3.327e-05,143.77,143.76,5.5669]
[1740812426469,3.327e-05,143.77,143.75,0.04708107]
[1740812427366,3.327e-05,143.77,143.68,1.9421]
[1740812427570,10.04,143.77,143.72,5.5682]
[1740812428473,0.05274279,143.76,143.73,0.04544567]
[1740812429166,5.61964279,143.76,143.73,0.04544567]
[1740812429573,0.05274279,143.76,143.73,0.04544567]
[1740812429977,0.05274279,143.76,143.64,10.04]
[1740812430270,1.8869,143.76,143.66,1.8735]
[1740812431174,0.04959872,143.72,143.7,5.61434798]